bitfinex/quotes_ETHUSD_20240915
["timestamp","ask_amount","ask_price","bid_price","bid_amount"]
[1726442749929,5.09021857,2333.6,2333.3,4.28561]
[1726442750130,5.09021857,2333.6,2333.4,4.28546]
[1726442750441,5.09021857,2333.6,2333.3,9.999765]
[1726442750636,5.09021857,2333.6,2333.3,4.28561]
[1726442750957,5.09021857,2333.4,2332.9,9.0702]
[1726442751088,9.1374,2333.8,2333.3,4.28568]
[1726442751292,5.09021857,2333.6,2333.3,4.28568]
[1726442751903,5.09021857,2333.6,2333.2,4.28592]
[1726442752139,5.09021857,2333.3,2333.2,4.28592]
[1726442755142,5.09021857,2333.4,2333.2,4.28586]
[1726442755426,5.09021857,2333.4,2333.2,4.28584]
[1726442756024,5.09021857,2333.4,2333.2,8.57169]
[1726442756655,5.09021857,2333.7,2333.5,4.28537]
[1726442756961,5.09021857,2334.0,2333.6,4.28522]
[1726442757116,5.09021857,2334.0,2333.6,8.998872]
[1726442757455,5.09021857,2333.7,2333.6,4.28512]
[1726442758436,5.09021857,2333.7,2333.5,4.28528]
[1726442758833,5.09021857,2333.7,2333.5,8.57058]
[1726442759241,5.09021857,2333.7,2333.5,4.28528]
[1726442759772,5.09021857,2333.7,2333.6,4.28522]
[1726442760849,5.09021857,2333.7,2333.6,8.57044]
[1726442761366,5.09021857,2334.0,2333.8,4.28476]
[1726442761521,5.09021857,2334.0,2333.9,4.28467]
[1726442762243,5.09021857,2334.0,2333.8,8.56946]
[1726442762565,5.09021857,2334.0,2333.9,4.28467]
[1726442763230,5.09021857,2334.3,2334.1,4.28418]
[1726442763687,5.09021857,2334.3,2334.1,8.56839]
[1726442763885,5.09021857,2334.6,2334.1,0.856839]
[1726442764068,5.09021857,2334.6,2334.4,4.2836]
[1726442764269,5.09021857,2334.6,2334.3,4.28379]
[1726442764900,5.09021857,2334.6,2334.4,4.28374]
[1726442765589,5.09021857,2334.6,2334.4,4.28366]
[1726442765999,5.09021857,2334.6,2334.2,4.712338]
[1726442766202,5.09021857,2334.6,2334.2,4.28394]
[1726442766972,5.09021857,2334.6,2334.3,4.28382]
[1726442767922,5.09021857,2334.6,2334.4,4.28375]
[1726442768417,5.09021857,2334.9,2334.7,4.28309]
[1726442768593,5.09021857,2335.2,2334.9,4.28272]
[1726442768931,5.09021857,2335.2,2334.9,4.28274]
[1726442769277,5.09021857,2335.2,2335.0,4.28263]
[1726442769518,5.09021857,2335.2,2335.1,4.28247]
[1726442769721,5.09021857,2335.2,2334.9,4.8051645]
[1726442769951,5.09021857,2335.2,2334.9,4.36831054]
[1726442770222,5.09021857,2335.2,2335.1,4.28247]
[1726442770619,5.09021857,2335.2,2335.0,4.28252]
[1726442771060,5.09021857,2335.2,2335.1,4.28247]
[1726442771211,5.09021857,2335.2,2335.1,8.56494]
[1726442771421,5.09021857,2335.5,2335.3,4.28199]
[1726442771988,5.12017077,2335.5,2335.3,4.28199]
[1726442772227,5.12017077,2335.5,2335.4,4.28192]
[1726442772731,5.12017077,2335.5,2335.4,9.420231]
[1726442772922,0.0299522,2335.5,2335.4,8.56384]
[1726442774131,0.0299522,2335.5,2335.4,18.38794]
[1726442775211,0.0299522,2335.5,2335.4,22.66986]
[1726442775415,0.0299522,2335.5,2335.4,24.936846]
[1726442776405,5.09521857,2336.0,2335.9,4.281]
[1726442777339,5.09521857,2336.0,2335.6,4.2814]
[1726442777746,5.09521857,2336.0,2335.8,4.28107]
[1726442778040,5.09521857,2336.0,2335.5,1.6373006]
[1726442778041,0.005,2336.0,2335.9,8.562]
[1726442778355,0.005,2336.0,2335.9,5.1372]
[1726442778711,0.005,2336.0,2335.9,0.8562]
[1726442778916,0.005,2336.0,2335.9,5.1372]
[1726442779917,0.005,2336.0,2335.8,4.28116]
[1726442780117,5.09521857,2336.0,2335.5,1.6373006]
[1726442780443,5.09521857,2336.0,2335.7,4.28136]
[1726442780641,5.09521857,2336.0,2335.5,5.9188706]
[1726442780944,5.09021857,2335.7,2335.4,4.2818]
[1726442781103,5.09021857,2335.7,2335.5,4.28173]
[1726442781636,9.6505,2335.6,2334.6,9.2741]
[1726442781818,9.6505,2335.6,2334.7,0.92741]
[1726442781819,5.09021857,2335.4,2334.7,0.92741]
[1726442782159,5.09021857,2335.0,2334.3,9.2741]
[1726442782356,9.6505,2335.1,2334.2,4.28409]
[1726442782357,5.09021857,2334.4,2334.2,4.28409]
[1726442782663,4.28293,2334.9,2334.1,4.28419]
[1726442782818,4.28293,2334.9,2334.0,9.2741]
[1726442782819,5.09021857,2334.4,2334.0,9.2741]
[1726442783023,5.09021857,2334.4,2334.1,4.28424]
[1726442783240,5.09021857,2334.4,2333.9,4.28462]
[1726442783444,5.09021857,2334.1,2333.9,4.28462]
[1726442783763,0.0979025,2334.3,2334.2,4.28412]
[1726442785719,0.0979025,2334.3,2334.1,4.2843]
[1726442786023,0.0979025,2334.3,2334.1,4.28419]
[1726442786220,0.0979025,2334.3,2333.9,8.997542]
[1726442786530,0.0979025,2334.3,2333.9,4.28453]
[1726442786731,0.0979025,2334.3,2334.0,4.28437]
[1726442787748,0.0979025,2334.3,2334.1,4.28428]
[1726442788063,0.0979025,2334.3,2334.2,8.56824]
[1726442788961,9.6505,2335.3,2334.2,9.35976294]
[1726442789188,9.6505,2335.3,2334.9,4.28278]
[1726442789189,5.09021857,2335.2,2334.9,4.28278]
[1726442789727,5.09021857,2335.2,2334.7,4.28303]
[1726442790642,5.09021857,2335.2,2334.9,4.28271]
[1726442791943,5.09021857,2335.2,2334.7,4.28309]
[1726442792139,5.09021857,2334.9,2334.3,1.36440329]
[1726442792393,5.09021857,2334.9,2334.7,4.28307]
[1726442793448,5.09021857,2334.9,2334.6,4.28337]
[1726442793679,5.09021857,2334.9,2334.5,8.56696]
[1726442793843,5.09021857,2334.9,2334.6,4.28326]
[1726442794187,5.09021857,2334.9,2334.1,9.8]
[1726442794371,5.09021857,2334.6,2334.4,4.28364]
[1726442797056,5.09021857,2334.6,2334.3,4.28376]
[1726442797235,5.09021857,2334.6,2334.3,8.5676]
[1726442797439,5.09021857,2334.6,2334.3,8.56758]
[1726442798843,5.09021857,2334.6,2334.4,4.28368]
[1726442799552,5.09021857,2334.6,2334.5,4.28357]
[1726442800388,5.09021857,2334.9,2334.6,4.28338]
[1726442805879,13.93306,2335.1,2334.6,4.28338]
[1726442806206,4.13463884,2334.7,2334.6,4.28338]
[1726442806776,9.6505,2335.1,2334.4,4.28375]
[1726442806979,9.6505,2335.1,2334.8,4.28285]
[1726442807799,9.6505,2335.1,2334.8,8.56578]
[1726442808921,9.6505,2335.1,2334.8,8.56577]
[1726442809213,9.64594258,2335.1,2334.8,8.56577]
[1726442809905,9.64594258,2335.1,2334.8,4.28285]
[1726442810502,9.64594258,2335.1,2334.8,8.56578]
[1726442810912,9.64594258,2335.1,2334.9,4.28283]
[1726442811209,4.13463884,2335.0,2334.9,4.28283]
[1726442812072,4.13463884,2335.0,2334.7,4.28302]
[1726442812407,4.13463884,2334.8,2334.7,4.28302]
[1726442814815,7.28186,2335.5,2334.7,4.28302]
[1726442814816,4.13463884,2335.0,2334.7,5.13966]
[1726442814979,4.13463884,2335.0,2334.7,4.28302]
[1726442815178,4.13463884,2335.0,2334.9,8.56566]
[1726442815771,4.13463884,2335.0,2334.9,18.39876]
[1726442816221,4.13463884,2335.0,2334.9,8.56566]
[1726442818505,4.13463884,2335.0,2334.9,4.28283]
[1726442820543,4.13463884,2335.1,2335.0,4.28265]
[1726442822615,9.5419,2335.0,2334.2,0.89638302]
[1726442822793,4.13463884,2334.5,2334.0,4.28437]
[1726442822989,4.13463884,2334.1,2334.0,4.28437]
[1726442823223,4.13463884,2334.1,2334.0,8.56886]
[1726442823535,4.13463884,2334.5,2334.4,4.28367]
[1726442823701,4.13463884,2334.5,2334.3,4.2838]
[1726442823888,4.13463884,2334.4,2334.3,4.2838]
[1726442824332,4.13463884,2334.4,2334.2,4.28406]
[1726442825950,13.67653884,2334.4,2334.1,4.28415]
[1726442826109,4.13463884,2334.2,2333.9,4.28451]
[1726442826299,4.13463884,2334.0,2333.9,4.28451]
[1726442829135,4.13463884,2334.0,2333.8,8.56957]
[1726442829338,4.13463884,2334.0,2333.8,4.28473]
[1726442829488,4.13463884,2334.0,2333.9,4.28467]
[1726442830227,4.13463884,2334.0,2333.9,8.56934]
[1726442830731,4.13463884,2334.0,2333.9,9.426274]
[1726442830911,4.13463884,2334.2,2334.1,4.28429]
[1726442833722,4.13463884,2334.2,2334.1,8.56859]
[1726442833903,4.13463884,2334.4,2334.3,4.28392]
[1726442834410,4.13463884,2334.4,2334.1,15.022329]
[1726442834411,0.44883119,2334.8,2334.7,4.28318]
[1726442834735,50.0,2335.0,2334.5,8.56684]
[1726442834736,4.13463884,2334.9,2334.5,8.56684]
[1726442834911,4.13463884,2334.6,2334.5,4.28342]
[1726442835242,4.13463884,2334.6,2334.4,4.28366]
[1726442835449,4.13463884,2334.5,2334.4,4.28366]
[1726442836145,4.13463884,2334.5,2334.4,4.28375]
[1726442836313,4.13463884,2334.5,2334.2,4.28411]
[1726442836515,4.13463884,2334.3,2334.2,4.28411]
[1726442836907,9.889,2334.2,2334.0,4.28445]
[1726442837127,4.13463884,2334.1,2334.0,4.28445]
[1726442839954,4.13463884,2334.1,2333.7,4.28493]
[1726442840128,4.13463884,2333.8,2333.7,4.28493]
[1726442840308,4.13463884,2333.8,2333.5,13.81939]
[1726442840511,4.13463884,2333.8,2333.5,13.81936]
[1726442841055,4.13463884,2333.8,2333.6,4.2851]
[1726442841766,4.13463884,2333.8,2333.7,8.57008]
[1726442841960,4.13463884,2334.0,2333.9,4.28467]
[1726442842256,4.13463884,2334.2,2334.0,4.28449]
[1726442842668,4.13463884,2334.4,2334.3,4.28387]
[1726442843668,4.13463884,2334.4,2334.2,4.28406]
[1726442844416,4.13463884,2334.4,2334.1,13.52049]
[1726442844757,4.13463884,2334.2,2334.0,4.28448]
[1726442844975,4.13463884,2334.1,2334.0,4.28449]
[1726442845147,4.13463884,2334.1,2333.9,4.28454]
[1726442845342,4.13463884,2334.1,2333.9,4.28453]
[1726442846743,4.13463884,2334.1,2333.9,8.56911]
[1726442846930,4.13463884,2334.1,2333.9,4.28453]
[1726442847263,4.13463884,2334.1,2333.8,4.28483]
[1726442847471,4.13463884,2333.9,2333.8,4.28483]
[1726442848250,9.2408,2333.8,2333.1,0.89770875]
[1726442848432,4.13463884,2333.5,2333.4,8.6094912]
[1726442849468,4.13463884,2333.5,2333.4,9.47044032]
[1726442849673,7.37543884,2333.8,2333.5,4.28536]
[1726442849883,4.13463884,2333.6,2333.5,4.28536]
[1726442850377,4.13463884,2333.6,2333.4,5.18474032]
[1726442850585,4.13463884,2333.6,2333.4,0.0383112]
[1726442850765,4.13463884,2333.6,2333.5,8.5708]
[1726442850930,4.13463884,2333.6,2333.5,4.2854]
[1726442851136,4.13463884,2333.6,2333.4,0.0383112]
[1726442853036,4.13463884,2333.6,2333.4,4.3238912]
[1726442853262,4.13463884,2333.6,2333.4,0.0383112]
[1726442856095,7.37543884,2333.8,2333.4,0.0383112]
[1726442856240,4.13463884,2333.8,2333.4,0.0383112]
[1726442856440,4.13463884,2333.8,2333.6,4.28519]
[1726442856783,4.13463884,2333.8,2333.4,4.3237512]
[1726442856941,4.13463884,2333.6,2333.4,4.3237512]
[1726442857775,4.13463884,2333.6,2333.4,0.0383112]
[1726442859764,9.0069,2333.5,2333.4,0.0383112]
[1726442860490,4.13463884,2333.6,2333.4,0.0383112]
[1726442860887,4.13463884,2333.8,2333.4,4.75627932]
[1726442861090,4.13463884,2333.8,2333.6,4.28519]
[1726442861387,4.13463884,2333.8,2333.4,14.0054812]
[1726442861388,4.13463884,2333.8,2333.4,4.3238812]
[1726442861593,4.13463884,2333.5,2333.4,4.3238812]
[1726442861806,4.13463884,2333.5,2333.4,0.0383112]
[1726442863689,13.14153884,2333.5,2333.4,0.0383112]
[1726442867498,4.13463884,2333.5,2333.4,4.3239012]
[1726442867683,4.13463884,2333.5,2333.4,0.0383112]
[1726442869059,4.13463884,2333.5,2333.4,4.3239012]
[1726442872690,9.0069,2333.8,2333.4,0.89926932]
[1726442872890,0.44900743,2333.9,2333.7,4.28491]
[1726442873127,4.13463884,2333.7,2333.6,4.28504]
[1726442874830,4.13463884,2333.7,2333.4,4.3238812]
[1726442875034,4.13463884,2333.5,2333.4,0.0383112]
[1726442875814,4.13463884,2333.5,2333.4,4.3239012]
[1726442876984,4.08463884,2333.5,2333.4,4.3239012]
[1726442879480,4.08463884,2333.5,2333.4,0.0383112]
[1726442879868,4.08463884,2333.5,2333.4,4.3239012]
[1726442880069,4.08463884,2333.5,2333.4,0.0383112]
[1726442881534,13.48673884,2333.5,2333.4,0.0383112]
[1726442882666,17.77213884,2333.5,2333.4,0.0383112]
[1726442883137,17.77213884,2333.5,2332.7,0.93601995]
[1726442883138,16.92989,2332.8,2332.7,0.0383112]
[1726442883396,29.48585768,2332.8,2332.7,0.0383112]
[1726442884355,4.28726,2332.5,2332.0,0.0383112]
[1726442884554,4.13463884,2332.1,2332.0,0.0383112]
[1726442885464,4.13463884,2332.1,2332.0,4.3264712]
[1726442885806,4.13463884,2332.1,2332.0,0.89979332]
[1726442886091,4.13463884,2332.1,2332.0,0.0383112]
[1726442887089,1.99866092,2332.1,2332.0,0.0383112]
[1726442887303,15.92984092,2332.1,2332.0,0.0383112]
[1726442887455,11.64186092,2332.1,2332.0,0.0383112]
[1726442887657,11.64186092,2332.1,2331.2,9.0808]
[1726442887658,4.13463884,2331.5,2331.3,4.3276112]
[1726442887854,4.13463884,2331.5,2331.3,0.0383112]
[1726442888919,4.13463884,2331.5,2331.3,4.3277312]
[1726442889123,4.13463884,2331.7,2331.4,6.05897412]
[1726442889273,4.13463884,2331.7,2331.4,10.34812412]
[1726442889475,4.13463884,2331.7,2331.5,4.28904]
[1726442889989,4.13463884,2331.7,2331.4,6.05895412]
[1726442890195,4.13463884,2331.5,2331.4,4.28915]
[1726442892206,4.13463884,2331.5,2331.4,4.28926]
[1726442892396,13.77783884,2331.5,2331.3,0.0383112]
[1726442892597,0.41346388,2331.4,2331.3,0.0383112]
[1726442892834,4.70272388,2331.4,2331.3,0.0383112]
[1726442893339,0.41346388,2331.4,2331.3,0.0383112]
[1726442893542,4.13463884,2331.4,2331.3,0.0383112]
[1726442894816,4.28847,2331.9,2331.3,0.0383112]
[1726442894817,3.0,2332.0,2331.3,0.0383112]
[1726442895021,4.13463884,2332.3,2331.9,14.24094]
[1726442895222,4.13463884,2332.1,2331.9,9.9526]
[1726442895438,4.13463884,2332.1,2330.6,0.0383112]
[1726442895439,4.29055,2330.7,2330.6,0.0383112]
[1726442895653,4.28837,2331.9,2330.7,9.9526]
[1726442895851,4.13463884,2331.5,2331.3,4.28932]
[1726442896018,4.13463884,2331.5,2331.1,4.28978]
[1726442896019,5.10281349,2331.7,2331.2,14.24212]
[1726442896216,5.10281349,2331.4,2330.9,4.29006]
[1726442896540,5.10281349,2331.4,2331.1,4.28979]
[1726442896726,5.10281349,2331.4,2331.1,4.2897]
[1726442897050,9.3792,2331.7,2331.3,4.28942]
[1726442897051,14.48201349,2331.7,2331.3,4.28942]
[1726442897245,5.10281349,2331.7,2331.3,4.28932]
[1726442897612,5.10281349,2331.7,2331.2,9.9526]
[1726442897949,14.48201349,2332.0,2331.6,4.28889]
[1726442898108,5.10281349,2332.0,2331.7,4.28866]
[1726442898305,5.10281349,2332.0,2331.6,4.28884]
[1726442898506,8.10281349,2332.2,2331.3,4.28945]
[1726442898752,8.10281349,2332.2,2331.9,4.28823]
[1726442898753,5.10281349,2332.2,2331.9,4.28823]
[1726442898977,5.10281349,2332.2,2331.9,4.28819]
[1726442899132,5.55211468,2332.5,2332.1,4.28797]
[1726442899334,5.55211468,2332.5,2331.9,4.28819]
[1726442900678,9.83949468,2332.5,2331.9,4.28819]
[1726442901085,5.55211468,2332.5,2331.9,8.57642]
[1726442901241,5.10281349,2332.2,2331.9,4.28819]
[1726442902072,5.55211468,2332.5,2331.8,14.24106]
[1726442902275,0.44930119,2332.5,2332.2,4.28762]
[1726442902478,0.44930119,2332.5,2331.8,14.24105]
[1726442902479,0.44930119,2332.5,2331.9,1.424106]
[1726442902640,9.7222,2332.9,2332.6,4.28702]
[1726442903032,0.44919754,2333.0,2332.6,4.28694]
[1726442903267,0.44919754,2333.0,2332.7,4.28686]
[1726442903539,0.44919754,2333.0,2332.8,4.28666]
[1726442903747,5.10281349,2333.1,2332.9,4.28651]
[1726442904080,0.44911859,2333.3,2333.1,4.28613]
[1726442904874,0.0383112,2333.4,2333.2,4.28595]
[1726442905086,0.0383112,2333.4,2333.3,8.57154]
[1726442905636,0.0383112,2333.4,2333.3,4.28577]
[1726442906644,0.0383112,2333.4,2333.2,4.714425]
[1726442906845,0.0383112,2333.4,2333.3,4.28577]
[1726442907745,0.0383112,2333.4,2333.3,8.57154]
[1726442911647,0.0383112,2333.4,2333.3,17.94734]
[1726442912881,0.0383112,2333.4,2333.3,22.23311]
[1726442913213,0.0383112,2333.4,2333.3,24.456421]
[1726442913483,0.0383112,2333.4,2333.3,23.170651]
[1726442913686,0.0383112,2334.1,2333.7,4.28499]
[1726442914065,0.0383112,2334.1,2333.9,4.28457]
[1726442914372,0.0383112,2334.1,2334.0,8.56898]
[1726442915004,0.0383112,2334.1,2334.0,4.28449]
[1726442915907,0.0383112,2334.1,2333.9,13.76534]
[1726442916069,0.0383112,2334.1,2334.0,4.28449]
[1726442916627,4.28486,2333.8,2333.2,4.28584]
[1726442916788,5.10281349,2333.3,2333.0,4.28616]
[1726442916976,5.10281349,2333.3,2333.2,4.28595]
[1726442918513,5.10281349,2333.6,2333.2,4.28595]
[1726442918708,5.93185803,2333.6,2333.2,4.28595]
[1726442919322,5.10281349,2333.6,2333.2,4.28595]
[1726442920013,5.10281349,2333.6,2333.3,4.28566]
[1726442920507,5.10281349,2333.6,2333.4,4.28546]
[1726442920710,5.10281349,2333.6,2333.3,8.57134]
[1726442921809,5.10281349,2333.6,2333.3,4.28566]
[1726442921983,5.10281349,2333.6,2333.3,8.57134]
[1726442922312,5.10281349,2333.9,2333.5,4.28522]
[1726442922470,5.10281349,2333.9,2333.6,4.28505]
[1726442922871,0.0383112,2334.1,2333.7,4.28502]
[1726442923174,0.0383112,2334.1,2333.8,4.28468]
[1726442924627,0.0383112,2334.1,2333.9,4.28456]
[1726442924770,0.0383112,2334.1,2334.0,4.28449]
[1726442925485,0.0383112,2334.1,2334.0,8.56898]
[1726442925690,9.86017946,2334.6,2334.0,8.56898]
[1726442925691,0.44887946,2334.6,2334.3,4.28382]
[1726442926086,5.55169295,2334.6,2334.3,4.28383]
[1726442926537,5.55169295,2334.6,2334.3,8.56765]
[1726442926722,5.55169295,2334.6,2334.3,4.28382]
[1726442927592,5.55169295,2334.6,2334.1,8.56847]
[1726442927815,5.55169295,2334.6,2334.1,4.28417]
[1726442928826,5.55169295,2334.6,2334.2,4.28401]
[1726442929236,5.55169295,2334.6,2334.3,4.28392]
[1726442931841,5.55169295,2334.6,2334.1,8.5683]
[1726442932035,5.55169295,2334.6,2334.1,4.28413]
[1726442933066,5.55169295,2334.6,2334.3,4.28392]
[1726442934029,5.55169295,2334.6,2334.1,4.28413]
[1726442934030,9.1585,2334.5,2334.1,4.28413]
[1726442934557,5.10281349,2334.3,2334.0,4.28448]
[1726442934766,5.10281349,2334.3,2334.1,4.28428]
[1726442935062,5.10281349,2334.3,2334.1,4.2842]
[1726442935276,9.1585,2334.5,2334.1,4.2842]
[1726442935483,5.55169295,2334.6,2334.3,4.28384]
[1726442935688,5.55169295,2334.6,2334.2,8.56795]
[1726442935845,5.55169295,2334.6,2334.2,4.28394]
[1726442936171,5.55169295,2334.6,2334.3,4.2838]
[1726442938067,5.55169295,2334.6,2334.4,4.28372]
[1726442939877,5.55169295,2334.6,2334.4,4.28366]
[1726442940678,0.44887946,2334.6,2334.5,4.28357]
[1726442942387,0.44887946,2334.6,2334.5,8.56714]
[1726442942944,0.0383112,2334.8,2334.5,8.56714]
[1726442943184,0.0383112,2334.8,2334.7,4.2832]
[1726442943392,0.0383112,2334.8,2334.7,8.5664]
[1726442945137,5.10281349,2334.9,2334.8,4.28302]
[1726442945756,50.0,2335.0,2334.8,4.28302]
[1726442945953,50.0,2335.0,2334.9,4.28283]
[1726442946513,50.0,2335.0,2334.9,8.56566]
[1726442946750,50.0,2335.0,2334.9,18.578326]
[1726442947735,49.75585937,2335.0,2334.9,22.861156]
[1726442947937,49.75585937,2335.0,2334.9,24.06004805]
[1726442948556,49.75585937,2335.0,2334.9,25.85888916]
[1726442949059,46.61764367,2335.0,2334.9,33.69171916]
[1726442949255,46.61764367,2335.0,2334.9,34.58942791]
[1726442949425,46.61764367,2335.0,2334.9,37.43780758]
[1726442949770,44.23182714,2335.0,2334.9,37.43672537]
[1726442949931,44.23182714,2335.0,2334.9,37.43668621]
[1726442950125,43.13714239,2335.0,2334.9,37.43668621]
[1726442950352,43.13714239,2335.0,2334.9,37.43195993]
[1726442952562,43.13714239,2335.0,2334.9,33.69185142]
[1726442953028,43.13714239,2335.0,2334.9,37.41615599]
[1726442953235,43.13714239,2335.0,2334.9,37.41616835]
[1726442953452,43.13714239,2335.0,2334.9,30.30256719]
[1726442953771,42.24249516,2335.0,2334.9,30.30256719]
[1726442954123,42.24249516,2335.0,2334.9,30.28202272]
[1726442954552,42.24249516,2335.0,2334.9,30.28175194]
[1726442955465,42.24249516,2335.0,2334.9,29.38847695]
[1726442955779,42.24249516,2335.0,2334.9,7.26015095]
[1726442955940,46.3765308,2335.0,2334.9,2.97732095]
[1726442956121,46.3765308,2335.0,2334.8,0.89327499]
[1726442956515,46.3765308,2335.0,2334.8,5.17625499]
[1726442956761,46.3765308,2335.0,2334.7,8.56628]
[1726442957068,4.13403564,2334.8,2334.7,4.2831]
[1726442957358,4.28334,2334.7,2334.0,5.17792752]
[1726442957669,4.13403564,2334.1,2334.0,5.17792752]
[1726442958167,5.0902646,2334.4,2334.2,4.2841]
[1726442958360,5.0902646,2334.4,2334.1,8.56858]
[1726442958567,5.0902646,2334.7,2334.3,4.28392]
[1726442958960,5.0902646,2334.7,2334.3,8.56775]
[1726442959182,5.0902646,2334.7,2334.3,4.28383]
[1726442959336,5.0902646,2334.7,2334.4,4.28373]
[1726442959882,5.0902646,2334.7,2334.3,4.28383]
[1726442961033,5.0902646,2334.7,2334.4,4.28374]
[1726442962174,5.0902646,2334.7,2334.5,4.28354]
[1726442962324,5.0902646,2334.7,2334.4,8.56739]
[1726442962668,5.0902646,2334.7,2334.4,4.28365]
[1726442963771,5.0902646,2334.7,2334.4,8.56728]
[1726442963943,5.0902646,2334.7,2334.5,4.28352]
[1726442965155,51.56049516,2335.0,2334.6,4.28327]
[1726442965692,51.56049516,2335.0,2334.7,4.28317]
[1726442968786,51.06049516,2335.0,2334.7,4.28317]
[1726442972130,51.06049516,2335.0,2334.8,4.28292]
[1726442973806,41.74249516,2335.0,2334.9,4.28283]
[1726442974006,41.74249516,2335.0,2334.8,4.28292]
[1726442974406,41.74249516,2335.0,2334.9,4.28283]
[1726442977229,41.74249516,2335.0,2334.9,8.56566]
[1726442977433,41.74249516,2335.0,2334.9,4.28283]
[1726442977657,41.74249516,2335.0,2334.4,9.1363]
[1726442977804,41.74249516,2335.0,2334.7,4.28308]
[1726442978204,41.74249516,2335.0,2334.7,8.56619]
[1726442978511,41.74249516,2335.0,2334.7,8.56617]
[1726442978714,41.74249516,2335.0,2334.8,4.28296]
[1726442980115,4.1336352,2334.9,2334.8,4.28296]
[1726442981349,4.1336352,2334.9,2334.7,4.28308]
[1726442981842,4.1336352,2334.9,2334.7,8.56617]
[1726442982337,9.0453,2334.8,2334.5,4.28345]
[1726442982513,4.1336352,2334.7,2334.6,4.28323]
[1726442986905,4.1336352,2334.7,2334.6,8.56661]
[1726442987102,4.1336352,2334.7,2334.6,4.28323]
[1726442992209,4.1336352,2334.7,2334.5,4.28344]
[1726442992407,4.1336352,2334.7,2334.6,4.28338]
[1726442994149,4.28341,2334.6,2334.0,5.17790752]
[1726442994352,4.1336352,2334.1,2333.9,8.5691]
[1726442994668,4.1336352,2334.1,2333.9,8.56912]
[1726442994825,4.1336352,2334.1,2333.9,4.28466]
[1726442995340,4.1336352,2334.1,2333.8,5.85743599]
[1726442996053,4.1336352,2334.1,2333.8,5.85728599]
[1726442996255,4.1336352,2334.1,2333.9,4.28466]
[1726442997423,4.1336352,2334.1,2333.9,6.2184146]
[1726442998765,2.41336352,2334.7,2334.1,4.28419]
[1726442998766,4.1336352,2334.3,2334.1,4.28419]
[1726443000259,4.1336352,2334.3,2334.0,8.56898]
[1726443000464,4.1336352,2334.1,2333.6,0.89356752]
[1726443000679,9.232,2334.2,2333.4,4.28544]
[1726443000680,4.1336352,2333.7,2333.4,4.28544]
[1726443000996,4.1336352,2333.7,2333.3,10.08916752]
[1726443000997,9.232,2334.2,2333.5,1.66085263]
[1726443001199,9.232,2334.2,2333.6,1.19566706]
[1726443001200,13.3656352,2334.2,2333.6,1.19566706]
[1726443001502,13.3656352,2334.2,2334.0,4.28435]
[1726443001946,9.232,2334.2,2333.9,4.28466]
[1726443002150,4.1336352,2334.0,2333.8,8.56944]
[1726443002593,4.1336352,2334.0,2333.9,4.28467]
[1726443003092,4.1336352,2334.0,2333.6,8.57019]
[1726443003256,4.1336352,2333.7,2333.6,4.28507]
[1726443003458,4.1336352,2333.7,2333.5,1.66085263]
[1726443003459,4.1336352,2333.7,2333.5,5.94624263]
[1726443003662,4.1336352,2333.7,2333.6,4.28522]
[1726443004296,4.28432,2334.1,2333.6,4.28522]
[1726443004555,13.5901352,2333.7,2333.1,0.90959512]
[1726443004706,13.5901352,2333.7,2333.1,0.0160276]
[1726443004707,4.1336352,2333.2,2333.1,0.0160276]
[1726443005336,3.71340895,2333.2,2333.1,0.0160276]
[1726443005748,0.73509123,2333.2,2333.1,0.0160276]
[1726443005914,14.19065531,2333.7,2333.1,0.0160276]
[1726443005915,14.12820124,2333.7,2333.1,0.0160276]
[1726443006120,13.46748172,2333.7,2333.1,0.0160276]
[1726443006325,4.28558,2333.5,2333.1,0.0160276]
[1726443006638,13.34261985,2333.7,2333.1,0.0160276]
[1726443006639,4.1336352,2333.2,2333.1,0.0160276]
[1726443007248,4.1336352,2333.2,2333.1,0.0126616]
[1726443010484,9.4565,2333.6,2333.3,4.28575]
[1726443010627,0.44900531,2333.7,2333.3,4.28575]
[1726443010628,0.44900531,2333.7,2333.5,4.2854]
[1726443010838,0.44900531,2333.7,2333.6,4.28522]
[1726443011027,4.1336352,2333.9,2333.5,4.2854]
[1726443011231,9.4565,2334.1,2333.4,4.714135]
[1726443011232,4.1336352,2333.7,2333.4,4.714135]
[1726443011897,4.1336352,2333.5,2333.3,4.28564]
[1726443012573,4.1336352,2333.5,2333.3,4.28575]
[1726443012729,4.1336352,2333.5,2333.2,4.2985916]
[1726443012930,4.1336352,2333.5,2333.3,4.28567]
[1726443014279,4.1336352,2333.5,2333.2,8.5843716]
[1726443014437,4.1336352,2333.3,2333.2,0.0126616]
[1726443016039,4.1336352,2333.5,2333.2,0.0126616]
[1726443016639,4.1336352,2333.5,2333.3,4.28568]
[1726443017236,4.1336352,2333.7,2333.3,4.28568]
[1726443017439,4.1336352,2333.7,2333.5,4.2853]
[1726443017675,4.1336352,2333.7,2333.6,4.28522]
[1726443018389,4.1336352,2333.7,2333.5,4.2853]
[1726443018611,4.1336352,2333.7,2333.5,10.406234]
[1726443018741,4.1336352,2333.7,2333.5,10.406224]
[1726443018941,4.1336352,2333.7,2333.5,6.120924]
[1726443019425,4.1336352,2333.7,2333.5,10.406234]
[1726443019689,4.1336352,2333.7,2333.6,4.28522]
[1726443019867,4.1336352,2333.7,2333.5,6.120924]
[1726443020073,4.1336352,2333.7,2333.5,10.406234]
[1726443020249,4.1336352,2333.7,2333.5,6.120924]
[1726443021996,4.1336352,2333.7,2333.5,1.835634]
[1726443022291,4.1336352,2333.7,2333.2,0.0126616]
[1726443022292,4.28541,2333.5,2333.2,0.0126616]
[1726443022488,9.3073,2333.6,2333.2,0.0126616]
[1726443022489,4.1336352,2333.3,2333.2,0.0126616]
[1726443024945,17.9005052,2333.3,2333.2,0.0126616]
[1726443025977,22.1862752,2333.3,2333.2,0.0126616]
[1726443026158,25.1862752,2333.3,2333.2,0.0126616]
[1726443026585,20.9005052,2333.3,2333.2,0.0126616]
[1726443026941,25.6348679,2333.3,2333.2,0.0126616]
[1726443028786,26.1848679,2333.3,2333.2,0.0126616]
[1726443031760,17.7654627,2333.3,2333.2,0.0126616]
[1726443031966,17.6133279,2333.3,2333.2,0.0126616]
[1726443032183,0.4485927,2333.3,2333.2,0.0126616]
[1726443032467,4.5822279,2333.3,2333.2,0.0126616]
[1726443034711,0.4485927,2333.3,2333.2,0.0126616]
[1726443035011,4.5822279,2333.3,2333.2,0.0126616]